[Event "Titled Tuesday Blitz June 27 Early 2023"]
[White "Andreikin, Dmitry"]
[Black "Indjic, Aleksandar"]
[WhiteFideId "4158814"]
[BlackFideId "911925"]
[WhiteElo "3008"]
[BlackElo "2968"]
[Result "1-0"]
[Round "8"]
[TimeControl "180+2"]
[Date "2023.06.27"]
[WhiteClock "0:00:02"]
[BlackClock "0:00:00"]
[Board "1"]

1. e4 {[%clk 0:03:00]}  e5 {[%clk 0:02:56]} 2. Nf3 {[%clk 0:03:00]}  Nc6 {[%clk 0:02:56]} 3. Bb5 {[%clk 0:03:00]}  Bc5 {[%clk 0:02:55]} 4. c3 {[%clk 0:02:59]}  Nf6 {[%clk 0:02:50]} 5. d4 {[%clk 0:02:55]}  exd4 {[%clk 0:02:48]} 6. e5 {[%clk 0:02:56]}  Nd5 {[%clk 0:02:46]} 7. O-O {[%clk 0:02:54]}  Be7 {[%clk 0:02:46]} 8. cxd4 {[%clk 0:02:47]}  d6 {[%clk 0:02:46]} 9. Nc3 {[%clk 0:02:38]}  Be6 {[%clk 0:02:44]} 10. exd6 {[%clk 0:02:01]}  cxd6 {[%clk 0:02:42]} 11. Re1 {[%clk 0:01:51]}  O-O {[%clk 0:02:41]} 12. h3 {[%clk 0:01:52]}  Rc8 {[%clk 0:02:32]} 13. Bd2 {[%clk 0:01:45]}  Nxc3 {[%clk 0:02:30]} 14. bxc3 {[%clk 0:01:45]}  d5 {[%clk 0:02:29]} 15. Bd3 {[%clk 0:01:43]}  Re8 {[%clk 0:02:28]} 16. Rb1 {[%clk 0:01:41]}  Qd7 {[%clk 0:02:15]} 17. Re3 {[%clk 0:01:15]}  h6 {[%clk 0:02:13]} 18. Qe2 {[%clk 0:01:12]}  Bf6 {[%clk 0:01:59]} 19. Re1 {[%clk 0:01:06]}  Re7 {[%clk 0:01:59]} 20. Bb1 {[%clk 0:01:05]}  Bf5 {[%clk 0:01:56]} 21. Bxf5 {[%clk 0:01:00]}  Qxf5 {[%clk 0:01:54]} 22. Rxe7 {[%clk 0:00:59]}  Nxe7 {[%clk 0:01:52]} 23. Qb5 {[%clk 0:00:59]}  b6 {[%clk 0:01:48]} 24. Ne5 {[%clk 0:00:50]}  Qc2 {[%clk 0:01:07]} 25. Ng4 {[%clk 0:00:33]}  Bh4 {[%clk 0:00:26]} 26. Qd7 {[%clk 0:00:33]}  Qxd2 {[%clk 0:00:15]} 27. Rxe7 {[%clk 0:00:32]}  Rf8 {[%clk 0:00:06]} 28. Re8 {[%clk 0:00:21]}  h5 {[%clk 0:00:05]} 29. Rxf8+ {[%clk 0:00:15]}  Kxf8 {[%clk 0:00:06]} 30. Qc8+ {[%clk 0:00:15]}  Ke7 {[%clk 0:00:07]} 31. Qc7+ {[%clk 0:00:15]}  Kf8 {[%clk 0:00:07]} 32. Qb8+ {[%clk 0:00:14]}  Ke7 {[%clk 0:00:07]} 33. Qxa7+ {[%clk 0:00:14]}  Ke6 {[%clk 0:00:06]} 34. Qxb6+ {[%clk 0:00:11]}  Kf5 {[%clk 0:00:06]} 35. Qb1+ {[%clk 0:00:11]}  Kg5 {[%clk 0:00:06]} 36. Ne5 {[%clk 0:00:08]}  Bxf2+ {[%clk 0:00:05]} 37. Kh1 {[%clk 0:00:09]}  Qxc3 {[%clk 0:00:04]} 38. Qf1 {[%clk 0:00:03]}  Bxd4 {[%clk 0:00:02]} 39. Nxf7+ {[%clk 0:00:01]}  Kg6 {[%clk 0:00:00]} 40. Nd6 {[%clk 0:00:02]} 1-0


[Site "https://www.chess.com"]

[Event "Titled Tuesday Blitz June 27 Early 2023"]
[White "Hakobyan, Aram"]
[Black "So, Wesley"]
[WhiteFideId "13306677"]
[BlackFideId "5202213"]
[WhiteElo "3007"]
[BlackElo "3107"]
[Result "1/2-1/2"]
[Round "8"]
[TimeControl "180+2"]
[Date "2023.06.27"]
[WhiteClock "0:00:04"]
[BlackClock "0:00:03"]
[Board "2"]

1. d4 {[%clk 0:03:00]}  Nf6 {[%clk 0:02:56]} 2. c4 {[%clk 0:03:00]}  e6 {[%clk 0:02:54]} 3. Nc3 {[%clk 0:03:01]}  d5 {[%clk 0:02:51]} 4. Nf3 {[%clk 0:02:59]}  a6 {[%clk 0:02:45]} 5. cxd5 {[%clk 0:02:55]}  exd5 {[%clk 0:02:46]} 6. Bg5 {[%clk 0:02:55]}  Be6 {[%clk 0:02:45]} 7. e3 {[%clk 0:02:56]}  Nbd7 {[%clk 0:02:45]} 8. Bd3 {[%clk 0:02:55]}  Bd6 {[%clk 0:02:43]} 9. h3 {[%clk 0:02:52]}  c6 {[%clk 0:02:41]} 10. Bf4 {[%clk 0:02:49]}  Qc7 {[%clk 0:02:40]} 11. Qd2 {[%clk 0:02:49]}  O-O {[%clk 0:02:39]} 12. O-O {[%clk 0:02:49]}  Rfe8 {[%clk 0:02:23]} 13. Rfe1 {[%clk 0:02:49]}  h6 {[%clk 0:02:21]} 14. Rac1 {[%clk 0:02:47]}  Rac8 {[%clk 0:02:12]} 15. b3 {[%clk 0:02:46]}  Nh5 {[%clk 0:02:06]} 16. Bxd6 {[%clk 0:02:46]}  Qxd6 {[%clk 0:02:06]} 17. Qb2 {[%clk 0:02:45]}  g6 {[%clk 0:01:56]} 18. b4 {[%clk 0:02:41]}  Nhf6 {[%clk 0:01:44]} 19. Na4 {[%clk 0:02:40]}  Rc7 {[%clk 0:01:30]} 20. Nc5 {[%clk 0:02:38]}  Nb6 {[%clk 0:01:21]} 21. Ne5 {[%clk 0:02:36]}  Nfd7 {[%clk 0:01:18]} 22. a4 {[%clk 0:02:11]}  Qe7 {[%clk 0:01:12]} 23. Nf3 {[%clk 0:01:34]}  Qf6 {[%clk 0:01:01]} 24. a5 {[%clk 0:01:28]}  Nc8 {[%clk 0:00:56]} 25. Ne5 {[%clk 0:01:24]}  Nd6 {[%clk 0:00:46]} 26. f4 {[%clk 0:01:24]}  Qe7 {[%clk 0:00:30]} 27. Rf1 {[%clk 0:01:20]}  Bf5 {[%clk 0:00:28]} 28. Bxf5 {[%clk 0:01:02]}  Nxf5 {[%clk 0:00:29]} 29. Rce1 {[%clk 0:00:55]}  Kg7 {[%clk 0:00:23]} 30. Qf2 {[%clk 0:00:33]}  Nf6 {[%clk 0:00:19]} 31. g4 {[%clk 0:00:31]}  Nd6 {[%clk 0:00:19]} 32. Qg2 {[%clk 0:00:30]}  Nfe4 {[%clk 0:00:19]} 33. f5 {[%clk 0:00:29]}  g5 {[%clk 0:00:17]} 34. Rf3 {[%clk 0:00:19]}  f6 {[%clk 0:00:17]} 35. Ng6 {[%clk 0:00:18]}  Qf7 {[%clk 0:00:17]} 36. h4 {[%clk 0:00:15]}  Kg8 {[%clk 0:00:17]} 37. Rh3 {[%clk 0:00:14]}  Qg7 {[%clk 0:00:12]} 38. hxg5 {[%clk 0:00:14]}  Nxg5 {[%clk 0:00:12]} 39. Rh5 {[%clk 0:00:14]}  Kf7 {[%clk 0:00:06]} 40. Nf4 {[%clk 0:00:13]}  Kg8 {[%clk 0:00:05]} 41. Nce6 {[%clk 0:00:12]}  Nxe6 {[%clk 0:00:05]} 42. Nxe6 {[%clk 0:00:13]}  Rxe6 {[%clk 0:00:05]} 43. fxe6 {[%clk 0:00:14]}  Re7 {[%clk 0:00:06]} 44. Qh3 {[%clk 0:00:13]}  Kh7 {[%clk 0:00:04]} 45. Kh1 {[%clk 0:00:11]}  Ne4 {[%clk 0:00:04]} 46. Rf1 {[%clk 0:00:10]}  Ng5 {[%clk 0:00:04]} 47. Qg3 {[%clk 0:00:07]}  Rxe6 {[%clk 0:00:05]} 48. Qf4 {[%clk 0:00:08]}  Qg6 {[%clk 0:00:05]} 49. Rh2 {[%clk 0:00:07]}  Qe4+ {[%clk 0:00:04]} 50. Qxe4+ {[%clk 0:00:08]}  Nxe4 {[%clk 0:00:05]} 51. Kg1 {[%clk 0:00:05]}  Kg7 {[%clk 0:00:05]} 52. Rf4 {[%clk 0:00:03]}  Nd6 {[%clk 0:00:05]} 53. Rf3 {[%clk 0:00:03]}  Ne4 {[%clk 0:00:05]} 54. Rc2 {[%clk 0:00:03]}  Ng5 {[%clk 0:00:05]} 55. Rg3 {[%clk 0:00:03]}  Re4 {[%clk 0:00:06]} 56. Rf2 {[%clk 0:00:03]}  Kg6 {[%clk 0:00:06]} 57. Kg2 {[%clk 0:00:03]}  Nf7 {[%clk 0:00:05]} 58. Rf4 {[%clk 0:00:03]}  Re6 {[%clk 0:00:05]} 59. Rf2 {[%clk 0:00:03]}  Ng5 {[%clk 0:00:05]} 60. Re2 {[%clk 0:00:03]}  Ne4 {[%clk 0:00:06]} 61. Rf3 {[%clk 0:00:03]}  Nc3 {[%clk 0:00:06]} 62. Re1 {[%clk 0:00:03]}  Ne4 {[%clk 0:00:07]} 63. Re2 {[%clk 0:00:04]}  Ng5 {[%clk 0:00:07]} 64. Rg3 {[%clk 0:00:04]}  Re4 {[%clk 0:00:07]} 65. Re1 {[%clk 0:00:04]}  Ne6 {[%clk 0:00:07]} 66. Kf2 {[%clk 0:00:03]}  Kg5 {[%clk 0:00:07]} 67. Rh1 {[%clk 0:00:03]}  Ng7 {[%clk 0:00:07]} 68. Rgh3 {[%clk 0:00:03]}  f5 {[%clk 0:00:04]} 69. Rxh6 {[%clk 0:00:02]}  fxg4 {[%clk 0:00:04]} 70. Rh7 {[%clk 0:00:02]}  Nf5 {[%clk 0:00:05]} 71. Rh8 {[%clk 0:00:02]}  g3+ {[%clk 0:00:05]} 72. Kg2 {[%clk 0:00:02]}  Rxe3 {[%clk 0:00:06]} 73. Rg8+ {[%clk 0:00:02]}  Kf4 {[%clk 0:00:06]} 74. Rf1+ {[%clk 0:00:03]}  Ke4 {[%clk 0:00:06]} 75. Re8+ {[%clk 0:00:02]}  Kxd4 {[%clk 0:00:07]} 76. Rg8 {[%clk 0:00:01]}  Re2+ {[%clk 0:00:07]} 77. Kh3 {[%clk 0:00:01]}  Ne3 {[%clk 0:00:05]} 78. Rf4+ {[%clk 0:00:02]}  Kc3 {[%clk 0:00:05]} 79. Rxg3 {[%clk 0:00:03]}  d4 {[%clk 0:00:06]} 80. Rf7 {[%clk 0:00:02]}  d3 {[%clk 0:00:06]} 81. Rxb7 {[%clk 0:00:03]}  d2 {[%clk 0:00:06]} 82. Rd7 {[%clk 0:00:04]}  Kc2 {[%clk 0:00:06]} 83. Rg6 {[%clk 0:00:04]}  d1=Q {[%clk 0:00:05]} 84. Rxc6+ {[%clk 0:00:04]}  Kb3 {[%clk 0:00:04]} 85. Rxd1 {[%clk 0:00:05]}  Nxd1 {[%clk 0:00:05]} 86. Rxa6 {[%clk 0:00:06]}  Kxb4 {[%clk 0:00:05]} 87. Ra8 {[%clk 0:00:06]}  Kb5 {[%clk 0:00:05]} 88. a6 {[%clk 0:00:07]}  Ne3 {[%clk 0:00:04]} 89. a7 {[%clk 0:00:08]}  Kb6 {[%clk 0:00:05]} 90. Kg3 {[%clk 0:00:07]}  Nf5+ {[%clk 0:00:04]} 91. Kf3 {[%clk 0:00:07]}  Nd4+ {[%clk 0:00:04]} 92. Kf4 {[%clk 0:00:08]}  Nc6 {[%clk 0:00:04]} 93. Rc8 {[%clk 0:00:07]}  Nxa7 {[%clk 0:00:04]} 94. Rc4 {[%clk 0:00:08]}  Nc6 {[%clk 0:00:04]} 95. Re4 {[%clk 0:00:08]}  Rd2 {[%clk 0:00:04]} 96. Ke3 {[%clk 0:00:08]}  Rd5 {[%clk 0:00:05]} 97. Rc4 {[%clk 0:00:08]}  Kb5 {[%clk 0:00:05]} 98. Rc1 {[%clk 0:00:08]}  Nb4 {[%clk 0:00:05]} 99. Ke4 {[%clk 0:00:08]}  Rd8 {[%clk 0:00:05]} 100. Rc7 {[%clk 0:00:08]}  Re8+ {[%clk 0:00:05]} 101. Kf3 {[%clk 0:00:08]}  Nd5 {[%clk 0:00:05]} 102. Rc1 {[%clk 0:00:08]}  Re3+ {[%clk 0:00:05]} 103. Kf2 {[%clk 0:00:08]}  Re6 {[%clk 0:00:06]} 104. Rc8 {[%clk 0:00:08]}  Nb4 {[%clk 0:00:06]} 105. Kf3 {[%clk 0:00:07]}  Nc6 {[%clk 0:00:07]} 106. Rh8 {[%clk 0:00:04]}  Kc5 {[%clk 0:00:07]} 107. Rh5+ {[%clk 0:00:05]}  Kd4 {[%clk 0:00:07]} 108. Rh4+ {[%clk 0:00:04]}  Kd3 {[%clk 0:00:08]} 109. Rh8 {[%clk 0:00:04]}  Nd4+ {[%clk 0:00:08]} 110. Kf4 {[%clk 0:00:04]}  Re4+ {[%clk 0:00:08]} 111. Kg5 {[%clk 0:00:04]}  Ke3 {[%clk 0:00:08]} 112. Rh3+ {[%clk 0:00:04]}  Nf3+ {[%clk 0:00:08]} 113. Kf6 {[%clk 0:00:05]}  Kf4 {[%clk 0:00:08]} 114. Rh1 {[%clk 0:00:03]}  Ra4 {[%clk 0:00:08]} 115. Rb1 {[%clk 0:00:03]}  Ra6+ {[%clk 0:00:07]} 116. Ke7 {[%clk 0:00:04]}  Nd4 {[%clk 0:00:07]} 117. Rb4 {[%clk 0:00:03]}  Ke5 {[%clk 0:00:08]} 118. Kd7 {[%clk 0:00:03]}  Ra7+ {[%clk 0:00:07]} 119. Ke8 {[%clk 0:00:02]}  Nc6 {[%clk 0:00:06]} 120. Rb1 {[%clk 0:00:01]}  Ke6 {[%clk 0:00:06]} 121. Re1+ {[%clk 0:00:02]}  Ne5 {[%clk 0:00:06]} 122. Kd8 {[%clk 0:00:03]}  Kd6 {[%clk 0:00:06]} 123. Kc8 {[%clk 0:00:03]}  Rc7+ {[%clk 0:00:05]} 124. Kd8 {[%clk 0:00:01]}  Rd7+ {[%clk 0:00:05]} 125. Kc8 {[%clk 0:00:01]}  Rc7+ {[%clk 0:00:05]} 126. Kd8 {[%clk 0:00:02]}  Rd7+ {[%clk 0:00:03]} 127. Kc8 {[%clk 0:00:02]}  Rf7 {[%clk 0:00:03]} 128. Rd1+ {[%clk 0:00:02]}  Kc6 {[%clk 0:00:03]} 129. Rc1+ {[%clk 0:00:03]}  Kb6 {[%clk 0:00:04]} 130. Rb1+ {[%clk 0:00:03]}  Kc5 {[%clk 0:00:04]} 131. Rc1+ {[%clk 0:00:03]}  Nc4 {[%clk 0:00:05]} 132. Kd8 {[%clk 0:00:03]}  Kd6 {[%clk 0:00:03]} 133. Ke8 {[%clk 0:00:04]}  Re7+ {[%clk 0:00:02]} 134. Kf8 {[%clk 0:00:05]}  Ne5 {[%clk 0:00:02]} 135. Kg8 {[%clk 0:00:03]}  Ke6 {[%clk 0:00:01]} 136. Rg1 {[%clk 0:00:03]}  Nd7 {[%clk 0:00:02]} 137. Re1+ {[%clk 0:00:03]}  Ne5 {[%clk 0:00:02]} 138. Rg1 {[%clk 0:00:03]}  Nd7 {[%clk 0:00:03]} 139. Re1+ {[%clk 0:00:04]}  Ne5 {[%clk 0:00:03]} 140. Rg1 {[%clk 0:00:04]} 1/2-1/2


[Site "https://www.chess.com"]

[Event "Titled Tuesday Blitz June 27 Early 2023"]
[White "Bacrot, Etienne"]
[Black "Tari, Aryan"]
[WhiteFideId "605506"]
[BlackFideId "1510045"]
[WhiteElo "2887"]
[BlackElo "2937"]
[Result "0-1"]
[Round "8"]
[TimeControl "180+2"]
[Date "2023.06.27"]
[WhiteClock "0:00:05"]
[BlackClock "0:00:41"]
[Board "5"]

1. e4 {[%clk 0:03:00]}  e5 {[%clk 0:02:46]} 2. Nf3 {[%clk 0:03:01]}  Nc6 {[%clk 0:02:44]} 3. Bc4 {[%clk 0:03:01]}  Nf6 {[%clk 0:02:43]} 4. d3 {[%clk 0:03:01]}  Bc5 {[%clk 0:02:42]} 5. Nc3 {[%clk 0:03:01]}  a6 {[%clk 0:02:34]} 6. O-O {[%clk 0:03:00]}  d6 {[%clk 0:02:30]} 7. a4 {[%clk 0:02:59]}  h6 {[%clk 0:02:30]} 8. Be3 {[%clk 0:02:58]}  Bxe3 {[%clk 0:02:27]} 9. fxe3 {[%clk 0:02:58]}  Be6 {[%clk 0:02:27]} 10. Bxe6 {[%clk 0:02:51]}  fxe6 {[%clk 0:02:28]} 11. d4 {[%clk 0:02:49]}  O-O {[%clk 0:02:24]} 12. Qe2 {[%clk 0:02:47]}  Qe8 {[%clk 0:02:13]} 13. Qc4 {[%clk 0:02:43]}  Nxe4 {[%clk 0:02:04]} 14. Nxe4 {[%clk 0:02:36]}  d5 {[%clk 0:02:04]} 15. Qd3 {[%clk 0:02:34]}  Nb4 {[%clk 0:01:50]} 16. Qb3 {[%clk 0:02:24]}  dxe4 {[%clk 0:01:50]} 17. Nxe5 {[%clk 0:02:23]}  Rxf1+ {[%clk 0:01:45]} 18. Rxf1 {[%clk 0:02:22]}  a5 {[%clk 0:01:46]} 19. Rf7 {[%clk 0:02:10]}  Nc6 {[%clk 0:01:40]} 20. Rxc7 {[%clk 0:02:04]}  Nxe5 {[%clk 0:01:40]} 21. dxe5 {[%clk 0:02:04]}  Rd8 {[%clk 0:01:38]} 22. h3 {[%clk 0:01:40]}  Qg6 {[%clk 0:01:26]} 23. Qc3 {[%clk 0:01:24]}  Kh7 {[%clk 0:00:57]} 24. Kh2 {[%clk 0:01:17]}  Rd1 {[%clk 0:00:52]} 25. Qc4 {[%clk 0:00:08]}  Qf5 {[%clk 0:00:51]} 26. Rc5 {[%clk 0:00:08]}  Rd2 {[%clk 0:00:42]} 27. Kg1 {[%clk 0:00:05]}  Qf2+ {[%clk 0:00:41]} 0-1


[Site "https://www.chess.com"]

[Event "Titled Tuesday Blitz June 27 Early 2023"]
[White "Narayanan.S.L"]
[Black "Talibov, Shiroghlan"]
[WhiteFideId "5058422"]
[BlackFideId "13429078"]
[WhiteElo "2990"]
[BlackElo "2839"]
[Result "1-0"]
[Round "8"]
[TimeControl "180+2"]
[Date "2023.06.27"]
[WhiteClock "0:01:21"]
[BlackClock "0:00:04"]
[Board "10"]

1. d4 {[%clk 0:02:58]}  Nf6 {[%clk 0:02:56]} 2. c4 {[%clk 0:02:57]}  e6 {[%clk 0:02:56]} 3. Nf3 {[%clk 0:02:57]}  d5 {[%clk 0:02:56]} 4. Bg5 {[%clk 0:02:57]}  dxc4 {[%clk 0:02:55]} 5. e4 {[%clk 0:02:56]}  Be7 {[%clk 0:02:43]} 6. Nbd2 {[%clk 0:02:54]}  a6 {[%clk 0:02:34]} 7. Bxc4 {[%clk 0:02:49]}  b5 {[%clk 0:02:34]} 8. Bd3 {[%clk 0:02:47]}  Bb7 {[%clk 0:02:34]} 9. O-O {[%clk 0:02:43]}  Nbd7 {[%clk 0:02:34]} 10. Qe2 {[%clk 0:02:35]}  h6 {[%clk 0:02:33]} 11. Bh4 {[%clk 0:02:35]}  O-O {[%clk 0:02:32]} 12. Rac1 {[%clk 0:02:34]}  Rc8 {[%clk 0:02:29]} 13. Nb3 {[%clk 0:02:33]}  Nh5 {[%clk 0:02:26]} 14. Bxe7 {[%clk 0:02:29]}  Qxe7 {[%clk 0:02:27]} 15. Qe3 {[%clk 0:02:30]}  c6 {[%clk 0:02:10]} 16. Rc2 {[%clk 0:02:28]}  e5 {[%clk 0:02:04]} 17. dxe5 {[%clk 0:02:26]}  Nxe5 {[%clk 0:02:03]} 18. Nxe5 {[%clk 0:02:26]}  Qxe5 {[%clk 0:02:04]} 19. Rfc1 {[%clk 0:02:24]}  Nf6 {[%clk 0:02:01]} 20. h3 {[%clk 0:02:23]}  Rfd8 {[%clk 0:01:58]} 21. f4 {[%clk 0:02:22]}  Qe7 {[%clk 0:01:53]} 22. Nc5 {[%clk 0:02:22]}  Nd5 {[%clk 0:01:51]} 23. Qd2 {[%clk 0:02:15]}  Nb6 {[%clk 0:01:42]} 24. Qf2 {[%clk 0:02:12]}  Ba8 {[%clk 0:01:37]} 25. b3 {[%clk 0:02:11]}  a5 {[%clk 0:01:36]} 26. Bf1 {[%clk 0:02:09]}  a4 {[%clk 0:01:32]} 27. b4 {[%clk 0:02:02]}  Rd6 {[%clk 0:01:28]} 28. a3 {[%clk 0:02:02]}  Rcd8 {[%clk 0:01:26]} 29. e5 {[%clk 0:02:00]}  Rd4 {[%clk 0:01:25]} 30. Re1 {[%clk 0:01:58]}  Nc4 {[%clk 0:01:10]} 31. Bxc4 {[%clk 0:01:55]}  bxc4 {[%clk 0:01:10]} 32. Nxa4 {[%clk 0:01:55]}  c5 {[%clk 0:01:11]} 33. Nxc5 {[%clk 0:01:54]}  Qa7 {[%clk 0:01:01]} 34. e6 {[%clk 0:01:52]}  Rd1 {[%clk 0:00:58]} 35. exf7+ {[%clk 0:01:51]}  Qxf7 {[%clk 0:00:57]} 36. Rxd1 {[%clk 0:01:51]}  Rxd1+ {[%clk 0:00:57]} 37. Kh2 {[%clk 0:01:52]}  Rd6 {[%clk 0:00:52]} 38. Qe2 {[%clk 0:01:38]}  Qxf4+ {[%clk 0:00:39]} 39. g3 {[%clk 0:01:30]}  Qf7 {[%clk 0:00:35]} 40. Rxc4 {[%clk 0:01:30]}  Rd1 {[%clk 0:00:22]} 41. Ne4 {[%clk 0:01:24]}  Bd5 {[%clk 0:00:06]} 42. Rc8+ {[%clk 0:01:22]}  Kh7 {[%clk 0:00:07]} 43. Qxd1 {[%clk 0:01:22]}  Bxe4 {[%clk 0:00:07]} 44. Qe2 {[%clk 0:01:22]}  Bb7 {[%clk 0:00:04]} 45. Rb8 {[%clk 0:01:21]} 1-0


[Site "https://www.chess.com"]

[Event "Titled Tuesday Blitz June 27 Early 2023"]
[White "Suleymanli, Aydin"]
[Black "Harshavardhan G B"]
[WhiteFideId "13413937"]
[BlackFideId "25059009"]
[WhiteElo "2942"]
[BlackElo "2809"]
[Result "0-1"]
[Round "8"]
[TimeControl "180+2"]
[Date "2023.06.27"]
[WhiteClock "0:00:03"]
[BlackClock "0:00:50"]
[Board "12"]

1. e4 {[%clk 0:03:00]}  c5 {[%clk 0:02:59]} 2. Nf3 {[%clk 0:03:00]}  d6 {[%clk 0:02:59]} 3. d4 {[%clk 0:02:58]}  cxd4 {[%clk 0:03:00]} 4. Nxd4 {[%clk 0:02:59]}  Nf6 {[%clk 0:03:00]} 5. Nc3 {[%clk 0:02:59]}  Nc6 {[%clk 0:03:01]} 6. Bg5 {[%clk 0:02:48]}  e6 {[%clk 0:03:00]} 7. Qd2 {[%clk 0:02:47]}  a6 {[%clk 0:02:59]} 8. O-O-O {[%clk 0:02:43]}  Bd7 {[%clk 0:03:00]} 9. f4 {[%clk 0:02:43]}  b5 {[%clk 0:02:58]} 10. a3 {[%clk 0:02:34]}  Qb6 {[%clk 0:02:54]} 11. f5 {[%clk 0:02:29]}  Qxd4 {[%clk 0:02:46]} 12. Qxd4 {[%clk 0:02:27]}  Nxd4 {[%clk 0:02:46]} 13. Rxd4 {[%clk 0:02:20]}  Bc6 {[%clk 0:02:47]} 14. fxe6 {[%clk 0:02:15]}  fxe6 {[%clk 0:02:46]} 15. Bd3 {[%clk 0:02:01]}  e5 {[%clk 0:02:35]} 16. Bxf6 {[%clk 0:01:44]}  gxf6 {[%clk 0:02:33]} 17. Rd5 {[%clk 0:01:40]}  Rg8 {[%clk 0:02:25]} 18. g3 {[%clk 0:01:38]}  Ke7 {[%clk 0:02:21]} 19. Rf1 {[%clk 0:01:33]}  Bh6+ {[%clk 0:02:16]} 20. Kd1 {[%clk 0:01:32]}  Be3 {[%clk 0:02:13]} 21. Rxf6 {[%clk 0:01:22]}  Kxf6 {[%clk 0:01:47]} 22. Rxd6+ {[%clk 0:01:22]}  Kg5 {[%clk 0:01:48]} 23. Rxc6 {[%clk 0:01:07]}  Bd4 {[%clk 0:01:47]} 24. Kd2 {[%clk 0:00:14]}  Rg6 {[%clk 0:01:42]} 25. Rc7 {[%clk 0:00:12]}  Rh6 {[%clk 0:01:39]} 26. h4+ {[%clk 0:00:09]}  Kg4 {[%clk 0:01:38]} 27. Rg7+ {[%clk 0:00:09]}  Kh3 {[%clk 0:01:35]} 28. b3 {[%clk 0:00:06]}  Rf8 {[%clk 0:01:31]} 29. Ne2 {[%clk 0:00:06]}  Bf2 {[%clk 0:01:25]} 30. c4 {[%clk 0:00:05]}  Rd8 {[%clk 0:01:19]} 31. Nc3 {[%clk 0:00:03]}  bxc4 {[%clk 0:01:17]} 32. bxc4 {[%clk 0:00:04]}  Rb8 {[%clk 0:01:13]} 33. Nd5 {[%clk 0:00:04]}  Rb2+ {[%clk 0:01:13]} 34. Kc1 {[%clk 0:00:05]}  Bd4 {[%clk 0:01:10]} 35. g4 {[%clk 0:00:02]}  Rxh4 {[%clk 0:01:09]} 36. c5 {[%clk 0:00:02]}  Kg3 {[%clk 0:01:06]} 37. Rf7 {[%clk 0:00:02]}  Rh1+ {[%clk 0:00:55]} 38. Rf1 {[%clk 0:00:02]}  Rxf1+ {[%clk 0:00:55]} 39. Bxf1 {[%clk 0:00:03]}  Rf2 {[%clk 0:00:56]} 40. c6 {[%clk 0:00:04]}  Rxf1+ {[%clk 0:00:56]} 41. Kc2 {[%clk 0:00:04]}  Rf8 {[%clk 0:00:54]} 42. c7 {[%clk 0:00:03]}  Rc8 {[%clk 0:00:53]} 43. g5 {[%clk 0:00:03]}  Kh4 {[%clk 0:00:52]} 44. Kd3 {[%clk 0:00:01]}  Kxg5 {[%clk 0:00:52]} 45. a4 {[%clk 0:00:02]}  h5 {[%clk 0:00:52]} 46. a5 {[%clk 0:00:02]}  h4 {[%clk 0:00:52]} 47. Ke2 {[%clk 0:00:03]}  Kg4 {[%clk 0:00:50]} 48. Kf1 {[%clk 0:00:03]}  Kf3 {[%clk 0:00:50]} 49. Ke1 {[%clk 0:00:02]}  h3 {[%clk 0:00:50]} 50. Kd2 {[%clk 0:00:02]}  h2 {[%clk 0:00:51]} 51. Kd3 {[%clk 0:00:03]}  h1=Q {[%clk 0:00:51]} 52. Kc4 {[%clk 0:00:04]}  Qc1+ {[%clk 0:00:51]} 53. Kb4 {[%clk 0:00:03]}  Rxc7 {[%clk 0:00:50]} 0-1


[Site "https://www.chess.com"]

[Event "Titled Tuesday Blitz June 27 Early 2023"]
[White "Antipov, Mikhail Al."]
[Black "Halkias, Stelios"]
[WhiteFideId "4107012"]
[BlackFideId "4201809"]
[WhiteElo "2917"]
[BlackElo "2787"]
[Result "1-0"]
[Round "8"]
[TimeControl "180+2"]
[Date "2023.06.27"]
[WhiteClock "0:01:07"]
[BlackClock "0:00:16"]
[Board "13"]

1. e4 {[%clk 0:02:59]}  c5 {[%clk 0:02:59]} 2. Nf3 {[%clk 0:02:58]}  d6 {[%clk 0:02:59]} 3. d4 {[%clk 0:02:58]}  cxd4 {[%clk 0:03:00]} 4. Nxd4 {[%clk 0:02:59]}  Nf6 {[%clk 0:03:00]} 5. Nc3 {[%clk 0:02:59]}  a6 {[%clk 0:03:00]} 6. Rg1 {[%clk 0:02:59]}  e5 {[%clk 0:02:59]} 7. Nb3 {[%clk 0:02:59]}  h5 {[%clk 0:02:59]} 8. Be3 {[%clk 0:02:59]}  Be6 {[%clk 0:02:57]} 9. h3 {[%clk 0:02:59]}  Nc6 {[%clk 0:02:56]} 10. Qf3 {[%clk 0:02:59]}  Nb4 {[%clk 0:02:50]} 11. O-O-O {[%clk 0:02:57]}  Rc8 {[%clk 0:02:49]} 12. Kb1 {[%clk 0:02:55]}  Be7 {[%clk 0:02:38]} 13. a3 {[%clk 0:02:46]}  Rxc3 {[%clk 0:02:32]} 14. bxc3 {[%clk 0:02:36]}  Nc6 {[%clk 0:02:27]} 15. g4 {[%clk 0:02:35]}  hxg4 {[%clk 0:02:20]} 16. hxg4 {[%clk 0:02:36]}  Na5 {[%clk 0:02:14]} 17. g5 {[%clk 0:02:08]}  Nd7 {[%clk 0:02:12]} 18. g6 {[%clk 0:01:58]}  Nxb3 {[%clk 0:01:56]} 19. gxf7+ {[%clk 0:01:57]}  Bxf7 {[%clk 0:01:49]} 20. Rxg7 {[%clk 0:01:39]}  Nf6 {[%clk 0:01:12]} 21. Rxf7 {[%clk 0:01:30]}  Na5 {[%clk 0:01:04]} 22. Rg7 {[%clk 0:01:24]}  Qd7 {[%clk 0:00:51]} 23. Bc5 {[%clk 0:01:19]}  Rf8 {[%clk 0:00:25]} 24. Bxd6 {[%clk 0:01:13]}  Qxd6 {[%clk 0:00:23]} 25. Rxd6 {[%clk 0:01:12]}  Bxd6 {[%clk 0:00:23]} 26. Qf5 {[%clk 0:01:11]}  Nc6 {[%clk 0:00:20]} 27. Qe6+ {[%clk 0:01:11]}  Be7 {[%clk 0:00:16]} 28. Bxa6 {[%clk 0:01:07]} 1-0


[Site "https://www.chess.com"]

[Event "Titled Tuesday Blitz June 27 Early 2023"]
[White "Nogerbek, Kazybek"]
[Black "Priasmoro, Novendra"]
[WhiteFideId "13710427"]
[BlackFideId "7105029"]
[WhiteElo "2904"]
[BlackElo "2773"]
[Result "1-0"]
[Round "8"]
[TimeControl "180+2"]
[Date "2023.06.27"]
[WhiteClock "0:00:38"]
[BlackClock "0:00:48"]
[Board "14"]

1. d4 {[%clk 0:02:50]}  Nf6 {[%clk 0:02:54]} 2. Nf3 {[%clk 0:02:49]}  g6 {[%clk 0:02:53]} 3. Nbd2 {[%clk 0:02:46]}  d5 {[%clk 0:02:53]} 4. b3 {[%clk 0:02:46]}  Bg7 {[%clk 0:02:54]} 5. Bb2 {[%clk 0:02:47]}  O-O {[%clk 0:02:54]} 6. e3 {[%clk 0:02:47]}  c5 {[%clk 0:02:52]} 7. dxc5 {[%clk 0:02:48]}  Nbd7 {[%clk 0:02:50]} 8. b4 {[%clk 0:02:46]}  a5 {[%clk 0:02:48]} 9. a3 {[%clk 0:02:47]}  Qc7 {[%clk 0:02:45]} 10. c4 {[%clk 0:02:44]}  axb4 {[%clk 0:02:20]} 11. axb4 {[%clk 0:02:43]}  Rxa1 {[%clk 0:02:21]} 12. Qxa1 {[%clk 0:02:43]}  b6 {[%clk 0:02:22]} 13. cxb6 {[%clk 0:02:39]}  Qxb6 {[%clk 0:02:22]} 14. b5 {[%clk 0:02:37]}  Bb7 {[%clk 0:02:17]} 15. Be2 {[%clk 0:02:37]}  Ra8 {[%clk 0:02:16]} 16. Qb1 {[%clk 0:02:32]}  dxc4 {[%clk 0:02:14]} 17. Bd4 {[%clk 0:02:33]}  Qa5 {[%clk 0:02:08]} 18. O-O {[%clk 0:02:14]}  Bxf3 {[%clk 0:01:50]} 19. Nxf3 {[%clk 0:01:44]}  c3 {[%clk 0:01:42]} 20. Qb3 {[%clk 0:01:42]}  Rc8 {[%clk 0:01:39]} 21. Rc1 {[%clk 0:01:41]}  Ne4 {[%clk 0:01:38]} 22. Bd3 {[%clk 0:01:12]}  Ndc5 {[%clk 0:01:30]} 23. Qc2 {[%clk 0:01:08]}  Nxd3 {[%clk 0:01:15]} 24. Qxd3 {[%clk 0:01:09]}  Nd6 {[%clk 0:01:15]} 25. Bxg7 {[%clk 0:01:01]}  Kxg7 {[%clk 0:01:16]} 26. Nd4 {[%clk 0:01:01]}  Qa3 {[%clk 0:01:08]} 27. Ne2 {[%clk 0:00:39]}  c2 {[%clk 0:00:48]} 28. Qxa3 {[%clk 0:00:38]} 1-0


[Site "https://www.chess.com"]